bitfinex-derivatives/quotes_ETHF0:USTF0_20251211
["timestamp","ask_amount","ask_price","bid_price","bid_amount"]
[1765448299047,0.00872194,3195.7,3195.6,4.81950363]
[1765448299549,0.69912194,3195.7,3195.6,4.81950363]
[1765448299741,0.00872194,3195.7,3195.6,4.81950363]
[1765448300244,3.2078,3196.6,3196.5,2.0226]
[1765448300446,5.0409,3197.5,3197.4,0.7193]
[1765448300838,1.3895,3197.1,3197.0,0.7193]
[1765448301239,1.39242266,3197.1,3197.0,0.7193]
[1765448303748,1.39242266,3197.1,3197.0,1.4526]
[1765448304247,1.39242266,3197.1,3197.0,0.7193]
[1765448308350,1.3817,3196.9,3196.8,1.58119]
[1765448311942,1.3817,3196.9,3196.8,0.87569]
[1765448312444,1.3817,3196.9,3196.8,0.15639]
[1765448313147,1.3817,3196.9,3196.7,0.00469359]
[1765448313445,1.4286,3196.8,3196.7,0.00469359]
[1765448314852,2.8738,3196.8,3196.7,0.00469359]
[1765448316054,2.8738,3196.8,3196.7,0.73619359]
[1765448316247,2.8738,3196.8,3196.7,0.00469359]
[1765448317649,2.8738,3196.8,3196.3,0.0010372]
[1765448317854,1.8455,3196.5,3196.4,0.7315]
[1765448320357,1.8455,3196.5,3196.0,0.56913]
[1765448322157,0.7373,3196.1,3196.0,2.00613]
[1765448322547,4.6364,3196.1,3196.0,0.15643]
[1765448322753,1.4286,3195.7,3195.6,0.00265363]
[1765448322954,2.57742424,3195.7,3195.6,0.00265363]
[1765448323548,5.78522424,3195.7,3195.6,0.00265363]
[1765448329760,2.57742424,3195.7,3195.6,0.00265363]
[1765448329960,5.78522424,3195.7,3195.6,0.00265363]
[1765448330161,4.6364,3195.7,3195.6,0.00265363]
[1765448330357,5.78522424,3195.7,3195.6,0.00265363]
[1765448331865,3.2078,3195.7,3195.6,1.59610363]
[1765448332966,3.9451,3195.7,3195.6,1.59610363]
[1765448333357,3.2078,3195.7,3195.6,1.59610363]
[1765448333562,3.9451,3195.7,3195.6,1.59610363]
[1765448334167,4.6364,3195.7,3195.6,1.59610363]
[1765448335664,1.4286,3195.7,3195.6,1.59610363]
[1765448340178,0.7373,3195.7,3195.6,1.59610363]
[1765448340378,0.6925,3195.9,3195.8,1.4458]
[1765448340676,3.9003,3196.0,3195.9,1.4458]
[1765448341067,1.4369,3195.7,3195.6,0.00265363]
[1765448341379,2.58572424,3195.7,3195.6,0.00265363]
[1765448342182,1.4369,3195.2,3195.1,0.15647]
[1765448342373,5.79352424,3195.2,3195.1,0.15647]
[1765448343075,1.4369,3194.5,3194.4,4.8101]
[1765448343379,0.00322523,3194.5,3194.4,4.81349403]
[1765448344778,1.44012523,3194.5,3194.4,4.81349403]
[1765448345481,0.69572523,3194.5,3194.4,4.81349403]
[1765448348182,0.00322523,3194.5,3194.4,4.81349403]
[1765448348379,0.00322523,3194.5,3194.4,5.96231827]
[1765448348886,3.2078,3195.2,3194.4,5.96231827]
[1765448348887,3.9003,3195.2,3195.1,1.4458]
[1765448349182,3.9003,3195.2,3195.1,1.60227]
[1765448349981,4.64776529,3195.2,3195.1,1.60227]
[1765448350186,5.79658953,3195.2,3195.1,1.60227]
[1765448351282,5.79658953,3195.2,3195.1,0.15647]
[1765448351784,5.05218953,3195.2,3195.1,1.54877]
[1765448351982,3.90336529,3195.2,3195.1,1.54877]
[1765448352677,5.75558953,3195.2,3195.1,1.54877]
[1765448353386,0.2934,3194.5,3194.4,0.00339403]
[1765448353581,0.2934,3194.5,3194.0,0.4463]
[1765448353582,4.35662424,3194.6,3194.0,0.4463]
[1765448353780,3.2078,3194.1,3194.0,1.8386]
[1765448353980,3.2078,3194.1,3194.0,1.99512]
[1765448354687,3.2078,3194.1,3194.0,1.99819476]
[1765448357782,0.00306529,3195.2,3194.4,1.54881]
[1765448357783,3.2078,3194.5,3194.4,1.54881]
[1765448358579,0.00306529,3195.2,3194.4,8.29764848]
[1765448358782,0.00306529,3195.2,3195.1,4.6001]
[1765448359586,1.90226529,3195.2,3195.1,4.75657]
[1765448360088,1.90226529,3195.2,3195.1,5.90539424]
[1765448360690,1.90226529,3195.2,3195.1,4.75657]
[1765448360889,2.61046529,3195.2,3195.1,4.75657]
[1765448362290,3.31386529,3195.2,3195.1,4.75657]
[1765448362493,2.61046529,3195.2,3195.1,4.75657]
[1765448363795,1.90226529,3195.2,3195.1,4.75657]
[1765448364894,2.61046529,3195.2,3195.1,4.75657]
[1765448365704,1.90226529,3195.2,3195.1,4.75657]
[1765448367595,2.61046529,3195.2,3195.1,4.75657]
[1765448369092,3.31386529,3195.2,3195.1,4.75657]
[1765448369285,3.31386529,3195.2,3195.1,3.36427]
[1765448369484,3.31386529,3195.2,3195.1,0.15647]
[1765448373091,3.31386529,3195.2,3195.1,0.99227]
[1765448373898,3.31386529,3195.2,3195.1,0.15647]
[1765448374594,0.00469359,3195.5,3195.1,6.0]
[1765448374801,1.347,3196.0,3195.2,3.2078]
[1765448374992,2.1599,3196.0,3195.9,3.2078]
[1765448375696,1.35102443,3196.0,3195.9,3.36423]
[1765448375997,2.16392443,3196.0,3195.9,3.36423]
[1765448376598,3.81799325,3196.0,3195.9,0.15643]
[1765448378097,1.6436,3195.7,3195.6,0.00469359]
[1765448380901,1.6436,3195.6,3195.5,3.2078]
[1765448386207,1.6436,3195.6,3195.4,0.15646]
[1765448386504,2.1599,3195.5,3195.4,0.15646]
[1765448387208,1.6436,3195.2,3195.1,3.2078]
[1765448387703,1.6436,3195.2,3194.6,3.36429]
[1765448388206,1.6436,3194.7,3194.6,4.20009]
[1765448388400,0.8307,3195.0,3194.9,1.6875]
[1765448388703,2.1599,3195.0,3194.9,1.6875]
[1765448389609,2.1599,3195.0,3194.9,1.84398]
[1765448390406,3.07761165,3195.3,3195.2,1.6875]
[1765448390607,2.16392443,3196.0,3195.9,0.8358]
[1765448391401,2.16392443,3196.0,3195.9,1.6875]
[1765448391903,1.6436,3195.8,3195.7,4.20004]
[1765448393109,2.16392443,3196.0,3195.9,1.6875]
[1765448393500,2.16392443,3196.0,3195.9,0.8358]
[1765448396708,1.6436,3195.9,3195.8,0.99224]
[1765448397810,1.6436,3195.9,3195.8,0.15644]
[1765448398211,1.6436,3195.9,3195.8,0.99224]
[1765448400516,1.6436,3195.9,3195.8,1.84394]
[1765448401017,1.6436,3195.9,3195.8,0.15644]
[1765448401214,1.6436,3195.9,3195.2,3.2078]
[1765448401412,2.3393,3195.3,3195.2,3.2078]
[1765448401617,2.3393,3195.3,3195.2,4.3453]
[1765448401914,2.3393,3195.3,3195.2,5.62747]
[1765448403116,2.3393,3195.3,3195.2,3.36427]
[1765448404305,2.3393,3195.3,3195.2,3.2078]
[1765448404616,2.9884,3194.5,3194.4,3.3643]
[1765448405716,2.9884,3194.5,3194.4,4.5018]
[1765448408113,2.9884,3194.5,3194.4,3.3643]
[1765448409114,1.3897,3194.7,3194.6,2.4197]
[1765448410113,3.729,3194.7,3194.6,2.4197]
[1765448410515,2.5786,3194.7,3194.6,2.4197]
[1765448410917,1.3897,3194.7,3194.6,2.4197]
[1765448413017,2.4585,3194.7,3194.6,2.4197]
[1765448413317,3.5897,3194.7,3194.6,2.4197]
[1765448414423,3.5897,3194.7,3194.6,0.1565]
[1765448415920,2.2,3194.1,3194.0,3.21087476]
[1765448416228,2.2,3193.5,3193.4,5.3978]
[1765448416421,1.0688,3193.5,3193.4,5.3978]
[1765448416921,5.4078,3194.1,3194.0,2.8176]
[1765448417423,5.41085911,3194.1,3194.0,2.82073989]
[1765448418623,5.41085911,3194.1,3194.0,1.68183989]
[1765448418831,5.41085911,3194.1,3194.0,0.00313989]
[1765448421628,5.41085911,3194.1,3194.0,1.05423989]
[1765448422124,3.21085911,3194.1,3194.0,2.82073989]
[1765448422339,0.00305911,3194.1,3194.0,2.97726989]
[1765448422722,0.00469359,3194.4,3194.3,2.34651]
[1765448423121,2.20469359,3194.4,3194.3,0.15651]
[1765448423429,2.20469359,3194.4,3194.3,2.34651]
[1765448423834,2.20785259,3194.4,3194.3,2.34651]
[1765448440636,0.7154,3195.5,3194.4,2.61581]
[1765448440835,1.2437,3195.1,3195.0,5.6671]
[1765448441035,3.1715,3195.0,3194.9,0.15648]
[1765448441838,3.17534515,3195.0,3194.9,0.15648]
[1765448449143,4.32457639,3195.0,3194.9,0.15648]
[1765448450238,3.1715,3194.5,3194.4,7.12345128]
[1765448450432,2.4561,3194.3,3194.2,0.15651]
[1765448451045,2.4561,3194.3,3194.2,1.38971]
[1765448452239,2.4561,3194.3,3194.2,0.15651]
[1765448453043,2.4561,3194.3,3194.2,1.38971]
[1765448456249,3.1715,3194.5,3194.4,2.4593]
[1765448456847,3.1715,3194.5,3194.4,1.2332]
[1765448457348,2.4561,3194.4,3194.3,1.38971]
[1765448457553,3.60533124,3194.4,3194.3,0.15651]
[1765448460858,2.4561,3194.4,3194.3,0.15651]
[1765448464472,2.5627,3194.4,3194.3,2.72671]
[1765448465970,2.5627,3194.4,3194.3,1.41831]
[1765448471876,2.5627,3194.4,3194.3,2.72671]
[1765448472364,2.5627,3194.4,3194.3,1.41831]
[1765448473971,0.7154,3194.5,3194.3,2.61141]
[1765448474274,2.4391,3194.4,3194.3,1.30461]
[1765448474875,2.4391,3194.4,3194.3,2.49771]
[1765448475371,1.9497,3194.6,3194.2,1.14923124]
[1765448475372,1.9497,3194.6,3194.5,2.3412]
[1765448475578,3.1391,3194.6,3194.5,3.49043124]
[1765448475875,4.3888,3194.6,3194.5,1.1481]
[1765448476071,1.1894,3194.2,3194.1,3.64695124]
[1765448476578,3.1885,3194.5,3194.4,1.1481]
[1765448478266,3.1885,3194.5,3194.4,2.3412]
[1765448478469,0.7494,3194.5,3194.4,2.49771]
[1765448478673,1.14923124,3195.1,3194.9,2.3412]
[1765448478674,3.15834515,3195.0,3194.9,2.3412]
[1765448479078,3.15834515,3195.0,3194.9,1.1481]
[1765448479480,1.1894,3194.7,3194.6,2.49769]
[1765448479679,2.4391,3194.7,3194.6,2.49769]
[1765448481079,1.1894,3194.7,3194.6,2.49769]
[1765448481580,2.4391,3194.7,3194.6,2.49769]
[1765448482878,1.1894,3194.7,3194.6,3.64692124]
[1765448483073,1.90864515,3195.0,3194.9,2.49768]
[1765448483280,1.90864515,3195.0,3194.9,3.64691124]
[1765448483475,1.90864515,3195.0,3194.9,2.49768]
[1765448483671,3.15834515,3195.0,3194.9,2.49768]
[1765448483871,0.00384515,3195.0,3194.9,3.64691124]
[1765448484575,1.94264515,3195.0,3194.9,2.49768]
[1765448484778,3.19234515,3195.0,3194.9,2.49768]
[1765448487583,3.19234515,3195.0,3194.9,3.64691124]
[1765448488979,3.19234515,3195.0,3194.9,2.49768]
[1765448491489,3.19234515,3195.0,3194.9,1.30458]
[1765448492290,3.19234515,3195.0,3194.9,0.15648]
[1765448492684,3.19234515,3195.0,3194.9,1.28028]
[1765448493391,3.08834515,3195.0,3194.9,2.42668]
[1765448494087,3.08834515,3195.0,3194.9,1.28028]
[1765448494689,4.23757639,3195.0,3194.9,0.15648]
[1765448495287,2.2221,3194.7,3194.6,3.2078]
[1765448495488,0.6694,3194.5,3194.3,0.15651]
[1765448495687,2.2221,3194.4,3194.3,0.15651]
[1765448495889,2.2221,3194.1,3194.0,0.00313989]
[1765448496086,3.37133124,3194.1,3194.0,0.00313989]
[1765448496292,6.57913124,3194.1,3194.0,0.00313989]
[1765448496991,3.37133124,3193.9,3193.8,0.15653]
[1765448497180,2.8915,3193.5,3193.4,4.3316]
[1765448497383,4.04073124,3193.5,3193.4,4.3316]
[1765448497586,2.8915,3193.5,3193.4,4.3316]
[1765448497891,2.8915,3193.5,3193.4,4.33477012]
[1765448498089,2.8915,3193.5,3193.4,4.49133012]
[1765448499590,4.04073124,3193.5,3193.4,0.15973012]
[1765448501192,2.8915,3193.5,3193.4,2.42993012]
[1765448501695,2.8915,3193.5,3193.4,1.28353012]
[1765448502391,4.2842,3194.4,3193.5,0.6096]
[1765448502596,5.4299,3194.4,3194.3,1.28031]
[1765448502793,5.4299,3194.4,3194.3,2.42671]
[1765448503190,5.4299,3194.4,3194.3,1.28031]
[1765448503987,5.4299,3194.4,3194.3,2.42671]
[1765448504800,1.0764,3194.4,3194.3,2.42671]
[1765448505096,0.6694,3194.5,3194.4,2.42671]
[1765448505297,1.7458,3194.5,3194.4,2.42671]
[1765448506201,2.8915,3194.5,3194.4,2.42671]
[1765448506899,2.8915,3194.5,3194.4,1.28031]
[1765448507201,2.8915,3194.5,3194.4,0.15651]
[1765448507400,4.01229542,3194.5,3194.4,0.15651]
[1765448512997,2.2221,3194.2,3193.6,3.2078]
[1765448513205,1.0764,3193.7,3193.6,5.63455]
[1765448513402,1.7458,3194.0,3193.9,2.2702]
[1765448513703,2.8915,3194.0,3193.9,1.1238]
[1765448514500,2.8915,3194.0,3193.9,1.28033]
[1765448517208,2.8915,3194.0,3193.9,2.42673]
[1765448517401,2.8915,3194.0,3193.9,1.28033]
[1765448518105,2.8915,3194.0,3193.9,2.42673]
[1765448518309,5.4299,3194.4,3194.3,1.1238]
[1765448518613,5.4299,3194.4,3194.0,0.15653]
[1765448518614,2.116,3194.1,3194.0,2.16883]
[1765448518909,2.116,3194.1,3194.0,1.16003]
[1765448519210,2.116,3194.1,3194.0,2.16883]
[1765448520308,3.2078,3194.4,3194.0,2.0123]
[1765448520507,1.7418,3194.5,3194.4,2.16881]
[1765448520712,0.6694,3194.5,3194.4,2.16881]
[1765448521009,5.3238,3194.8,3194.7,0.15649]
[1765448522209,4.3238,3194.8,3194.7,0.15649]
[1765448527409,2.116,3194.8,3194.7,0.15649]
[1765448530114,2.116,3194.8,3194.7,1.15999]
[1765448530414,2.116,3194.8,3194.7,0.15649]
[1765448532215,2.116,3194.8,3194.7,2.23089]
[1765448532413,5.4113,3194.9,3194.8,1.0523]
[1765448532610,2.2035,3194.8,3194.7,0.15649]
[1765448538321,3.32429542,3194.8,3194.7,0.15649]
[1765448538822,2.2035,3194.2,3194.1,3.2078]
[1765448539116,2.8523,3194.0,3193.9,0.15653]
[1765448540521,3.97309542,3194.0,3193.9,0.15653]
[1765448541825,2.8523,3194.0,3193.9,1.20883]
[1765448543113,2.8523,3194.0,3193.9,0.15653]
[1765448543319,3.97309542,3194.0,3193.9,0.15653]
[1765448547127,2.0579,3193.2,3193.1,0.15657]
[1765448547427,3.17869542,3193.2,3193.1,2.22217]
[1765448547629,2.0579,3193.2,3193.1,2.22217]
[1765448548024,1.0169,3193.2,3193.1,2.22610349]
[1765448548624,2.0579,3193.2,3193.1,2.22610349]
[1765448549731,1.0169,3193.2,3193.1,2.22610349]
[1765448551632,5.5414,3193.4,3193.3,2.2715]
[1765448551930,5.5414,3193.4,3193.3,1.1669]
[1765448552430,2.3336,3193.2,3193.1,2.43200349]
[1765448553032,2.3336,3193.2,3193.1,0.16050349]
[1765448553532,2.3336,3193.2,3193.1,1.32740349]
[1765448554533,2.3336,3193.2,3193.1,0.16050349]
[1765448554929,2.3336,3192.7,3192.6,3.2078]
[1765448555134,2.3336,3192.7,3192.5,0.79]
[1765448555135,2.3336,3192.6,3192.5,0.1566]
[1765448555329,2.3336,3192.4,3192.3,0.25150516]
[1765448555634,6.66219542,3192.4,3192.3,0.25150516]
[1765448555827,2.3336,3191.8,3191.7,2.42814]
[1765448556023,2.33761075,3191.8,3191.7,2.43182938]
[1765448556225,0.00401075,3191.8,3191.7,2.43182938]
[1765448557535,0.00401075,3191.8,3191.7,8.43182938]
[1765448557736,0.00401075,3191.8,3191.7,2.43182938]
[1765448558436,0.00401075,3191.8,3191.7,8.43182938]
[1765448558936,3.2078,3192.6,3192.5,1.8757]
[1765448558937,5.5414,3192.6,3192.5,1.8757]
[1765448559135,2.3336,3192.3,3192.2,0.15661]
[1765448559340,2.3336,3192.3,3192.2,2.42811]
[1765448559738,1.2066,3192.3,3192.2,2.42811]
[1765448559943,2.33618469,3192.3,3192.2,2.42811]
[1765448561349,3.45698011,3192.3,3192.2,0.15661]
[1765448561542,2.33618469,3192.3,3192.2,0.15661]
[1765448561742,2.33618469,3192.3,3192.2,1.32351]
[1765448562245,2.33618469,3192.3,3192.2,2.42811]
[1765448562448,2.33618469,3192.3,3191.5,0.4196]
[1765448562449,2.7077,3190.5,3190.1,3.2078]
[1765448562650,2.3336,3189.4,3189.3,1.32365]
[1765448562941,2.3336,3189.4,3189.0,0.7088]
[1765448563142,3.45439542,3189.1,3189.0,1.8757]
[1765448563342,5.5414,3189.1,3189.0,1.8757]
[1765448563546,1.2066,3189.5,3189.4,2.2715]
[1765448563742,3.2078,3189.6,3189.5,2.9803]
[1765448563949,3.21006747,3189.6,3189.5,3.13705]
[1765448564947,3.21006747,3189.6,3189.5,9.13705]
[1765448569247,0.00226747,3189.6,3189.5,9.13705]
[1765448569453,3.2078,3190.2,3190.1,2.2715]
[1765448570255,5.5414,3190.2,3190.1,2.2715]
[1765448570455,2.3336,3190.1,3190.0,2.03242]
[1765448570657,2.3336,3190.1,3190.0,3.13702]
[1765448572457,1.2066,3190.1,3190.0,3.13702]
[1765448573758,3.2107246,3190.2,3190.1,2.42822]
[1765448573956,1.21130152,3190.8,3190.7,2.42819]
[1765448574158,5.54610152,3190.8,3190.7,2.42819]
[1765448574353,5.54610152,3190.8,3190.7,1.32359]
[1765448574956,5.54610152,3190.8,3190.7,2.42819]
[1765448574957,5.54904621,3190.8,3190.7,2.42819]
[1765448578961,5.54904621,3190.8,3190.7,1.32359]
[1765448579163,5.54904621,3190.8,3190.7,2.66209]
[1765448580065,5.54904621,3190.8,3190.7,0.15669]
[1765448580570,5.54904621,3190.8,3190.7,1.55059]
[1765448581165,5.54904621,3190.8,3190.7,0.15669]
[1765448581469,5.54904621,3190.8,3190.7,1.55059]
[1765448582066,5.54904621,3190.8,3190.7,2.88909]
[1765448582262,3.21544621,3190.8,3190.7,2.88909]
[1765448582467,0.00764621,3190.8,3190.7,2.88909]
[1765448584971,1.4927,3190.9,3190.8,2.88908]
[1765448585170,0.84356757,3190.9,3190.8,6.09688]
[1765448585370,3.2078,3191.6,3191.5,3.59785]
[1765448585674,5.9514,3191.6,3191.5,0.15665]
[1765448586068,5.95417223,3191.6,3191.5,0.16024271]
[1765448586973,5.95417223,3191.6,3191.5,1.55414271]
[1765448589872,5.95417223,3191.6,3191.5,0.16024271]
[1765448590971,5.95417223,3191.6,3191.5,1.55414271]
[1765448592472,5.95417223,3191.6,3191.5,2.89264271]
[1765448593564,6.05197223,3191.6,3191.5,2.89264271]
[1765448594871,6.05197223,3191.6,3191.5,1.55414271]
[1765448595580,6.05197223,3191.6,3191.5,0.16024271]
[1765448599574,6.05197223,3191.6,3191.5,1.63274271]
[1765448599775,6.05197223,3191.6,3191.5,3.10404271]
[1765448599975,6.05197223,3191.6,3191.5,0.16024271]
[1765448600773,7.20359912,3191.6,3191.5,0.16024271]
[1765448602171,3.19557774,3191.6,3191.5,3.10404271]
[1765448602383,4.41700152,3191.9,3191.8,0.15663]
[1765448602774,2.87630152,3191.9,3191.8,0.15663]
[1765448603181,2.88002134,3191.9,3191.8,0.15663]
[1765448603582,4.03164823,3191.9,3191.8,0.15663]
[1765448604181,2.88002134,3191.9,3191.8,0.15663]
[1765448604781,4.03164823,3191.9,3191.8,0.15663]
[1765448605181,1.45792134,3191.9,3191.8,3.10043]
[1765448605380,1.45792134,3191.9,3191.8,1.62913]
[1765448605381,4.03164823,3191.9,3191.8,1.62913]
[1765448605886,4.03164823,3191.9,3191.8,0.15663]
[1765448607489,2.8716,3191.6,3191.5,0.00359271]
[1765448607687,7.23102689,3191.6,3191.5,0.00359271]
[1765448608086,2.8716,3191.3,3191.2,0.00470152]
[1765448608286,3.97222689,3191.2,3191.1,0.15667]
[1765448608486,3.97222689,3191.2,3190.2,5.56151722]
[1765448608487,1.3566,3190.3,3190.2,2.80311]
[1765448608890,2.7277,3190.3,3190.2,2.80311]
[1765448609190,2.7277,3190.3,3190.2,2.8069147]
[1765448611497,2.7277,3190.3,3190.2,1.4738147]
[1765448612202,2.7277,3190.3,3190.2,2.8069147]
[1765448616305,2.7277,3190.3,3190.2,0.1605147]
[1765448617906,2.7277,3190.3,3190.2,1.4738147]
[1765448620108,2.7277,3190.3,3190.2,0.1605147]
[1765448621704,5.9355,3190.3,3190.2,0.1605147]
[1765448622306,5.9355,3190.3,3190.2,2.8069147]
[1765448622502,3.2078,3190.3,3190.2,2.8069147]
[1765448622705,5.9355,3190.7,3190.6,2.6464]
[1765448623013,3.2078,3190.7,3190.6,2.80309]
[1765448625114,4.5644,3190.7,3190.6,2.80309]
[1765448626508,5.9355,3190.7,3190.6,2.80309]
[1765448626811,4.5644,3190.7,3190.6,2.80309]
[1765448627614,5.9355,3190.7,3190.6,2.80309]
[1765448629511,5.9355,3190.7,3190.6,0.15669]
[1765448631014,5.9355,3190.7,3190.6,2.80309]
[1765448631212,3.2078,3190.7,3190.6,2.80309]
[1765448631615,4.5644,3190.7,3190.6,2.80309]
[1765448633414,5.9355,3190.7,3190.6,2.80309]
[1765448636014,3.2078,3190.7,3190.6,2.80309]
[1765448636614,6.6971,3191.0,3190.9,1.3133]
[1765448637019,6.6971,3191.0,3190.9,1.46998]
[1765448639922,3.4893,3191.0,3190.9,1.46998]
[1765448640624,3.4893,3191.0,3190.9,2.80308]
[1765448642022,3.4893,3191.0,3190.9,0.15668]
[1765448642325,4.3674,3191.1,3191.0,2.49077]
[1765448642519,3.2078,3191.1,3191.0,2.49077]
[1765448642825,5.6407,3191.1,3191.0,2.49077]
[1765448643215,5.6407,3191.1,3191.0,0.15667]
[1765448646228,2.4329,3191.1,3191.0,0.15667]
[1765448646429,2.4329,3191.1,3191.0,1.32997]
[1765448646930,2.4329,3191.1,3191.0,0.15667]
[1765448653929,2.4329,3191.1,3191.0,2.51607]
[1765448654234,2.4329,3191.1,3191.0,1.31307]
[1765448654932,2.4329,3191.1,3191.0,0.15667]
[1765448655130,2.4329,3191.1,3191.0,1.31307]
[1765448655527,2.4329,3191.1,3191.0,0.15667]
[1765448659344,2.3873,3190.6,3190.5,3.2078]
[1765448659543,2.3873,3190.6,3190.5,4.3642]
[1765448660341,2.3873,3190.6,3190.5,5.5672]
[1765448660643,2.3873,3190.6,3190.5,5.7239]
[1765448660834,0.7295,3191.0,3190.9,2.51608]
[1765448661036,3.7202,3191.2,3191.1,2.3594]
[1765448661241,3.7202,3191.2,3191.1,0.15667]
[1765448664144,3.7202,3191.2,3191.1,2.51607]
[1765448664345,3.7202,3191.2,3191.1,1.31307]
[1765448665540,3.7202,3191.2,3191.1,0.15667]
[1765448665843,4.84349263,3191.2,3191.1,0.15667]
[1765448666044,4.84349263,3191.2,3191.1,1.31307]
[1765448666440,4.84349263,3191.2,3191.1,2.51607]
[1765448666639,4.84349263,3191.2,3191.1,1.31307]
[1765448666841,4.84349263,3191.2,3191.1,0.15667]
[1765448667248,4.84349263,3191.2,3191.1,1.31307]
[1765448667436,3.7202,3191.2,3191.1,2.51607]
[1765448668141,3.7202,3191.2,3191.1,1.31307]
[1765448669846,3.7202,3191.2,3191.1,2.51607]
[1765448670552,3.7202,3191.2,3191.1,1.31307]
[1765448672149,3.7202,3191.2,3191.1,2.37127]
[1765448673154,3.7202,3191.2,3191.1,1.31307]
[1765448674658,4.84349263,3191.2,3191.1,0.15667]
[1765448677261,3.7202,3191.2,3191.1,0.15667]
[1765448679559,2.4422,3191.2,3191.1,2.29417]
[1765448680152,3.6074,3191.2,3191.1,2.29417]
[1765448680652,2.4422,3191.2,3191.1,2.29417]
[1765448683261,3.6074,3191.2,3191.1,2.29417]
[1765448684355,3.6074,3191.2,3191.1,0.15667]
[1765448684559,4.73069263,3191.2,3191.1,0.15667]
[1765448685662,4.73069263,3191.2,3191.1,1.23597]
[1765448687263,3.6074,3191.2,3191.1,1.23597]
[1765448688665,4.75919778,3191.2,3191.1,1.23597]
[1765448689670,4.75919778,3191.2,3191.1,0.15667]
[1765448690168,4.75919778,3191.2,3191.1,1.23597]
[1765448690364,4.75919778,3191.2,3191.1,2.29417]
[1765448690668,4.75919778,3191.2,3191.1,1.23597]
[1765448692168,4.75919778,3191.2,3191.1,0.15667]
[1765448693267,4.75919778,3191.2,3191.1,1.23597]
[1765448693770,4.75919778,3191.2,3191.1,2.29417]
[1765448693969,3.6074,3191.2,3191.1,2.29417]
[1765448697672,3.6074,3191.2,3191.1,1.23597]
[1765448697876,4.75919778,3191.2,3191.1,1.23597]
[1765448698079,4.75919778,3191.2,3191.1,2.22387]
[1765448701778,3.6074,3191.2,3191.1,2.22387]
[1765448702079,2.4422,3191.2,3191.1,2.22387]
[1765448702477,1.3329,3191.2,3191.1,2.22387]
[1765448702977,1.09269119,3191.2,3191.1,12.58346778]
[1765448703385,4.2064,3191.7,3191.6,2.16374]
[1765448703980,0.9986,3191.7,3191.6,2.16374]
[1765448704181,3.15831912,3191.9,3191.8,2.16373]
[1765448704579,3.15831912,3191.9,3191.8,1.18993]
[1765448705781,3.15831912,3191.9,3191.8,2.16373]
[1765448706277,3.15831912,3191.9,3191.8,1.18993]
[1765448706780,3.15831912,3191.9,3191.8,0.15663]
[1765448712486,3.15831912,3191.9,3191.8,1.18993]
[1765448713781,2.00652134,3191.9,3191.8,2.16373]
[1765448713986,0.00842134,3191.9,3191.8,2.16373]
[1765448714186,1.00702134,3191.9,3191.8,2.16373]
[1765448714386,2.00652134,3191.9,3191.8,2.16373]
[1765448715286,2.00652134,3191.9,3191.8,0.15663]
[1765448722187,2.00652134,3191.9,3191.8,1.09823]
[1765448722398,2.00652134,3191.9,3191.8,2.06583]
[1765448723989,3.15831912,3191.9,3191.8,1.09823]
[1765448724191,3.15831912,3191.9,3191.8,0.15663]
[1765448725193,3.15831912,3191.9,3191.8,1.09823]
[1765448730297,3.15831912,3191.9,3191.8,0.15663]
[1765448732394,0.90782134,3191.9,3191.8,2.01443]
[1765448732699,0.00842134,3191.9,3191.8,2.01443]
[1765448734895,0.90782134,3191.9,3191.8,2.01443]
[1765448737502,0.00842134,3191.9,3191.8,2.01443]
[1765448738599,0.00842134,3191.9,3191.8,5.22223]
[1765448741402,1.34e-06,3191.9,3191.8,5.22223]
[1765448742006,1.55362134,3192.1,3192.0,2.55832]
[1765448742201,1.55362134,3192.1,3192.0,3.71011778]
[1765448743094,0.00470152,3192.4,3192.3,0.15661]
[1765448743294,4.1072,3192.9,3192.8,0.1556]
[1765448743896,1.6289,3193.0,3192.9,0.35568]
[1765448744297,0.00234557,3193.0,3192.9,1.51145842]
[1765448744499,0.00234557,3193.0,3192.9,0.35966064]
[1765448745207,0.00234557,3193.0,3192.9,1.51145842]
[1765448746404,0.00234557,3193.0,3192.9,10.87217629]
[1765448747006,0.00470152,3193.3,3193.2,0.85957]
[1765448747206,2.29760152,3193.3,3193.2,5.21916778]
[1765448747507,2.29760152,3193.3,3193.2,8.62714209]
[1765448747706,1.96329152,3193.3,3193.2,8.62714209]
[1765448747903,1.96565365,3193.3,3193.2,8.62714209]
[1765448748102,1.96565365,3193.3,3193.2,14.62714209]
[1765448748103,1.24532365,3193.3,3193.2,14.62714209]
[1765448748302,0.86200365,3193.3,3193.2,14.62714209]
[1765448748811,0.00470152,3193.6,3193.5,0.15655]
[1765448749712,0.00793056,3193.6,3193.5,0.15655]
[1765448751000,1.86863056,3193.6,3193.5,0.32395]
[1765448751303,2.98963854,3193.6,3193.5,0.15655]
[1765448751702,6.19743854,3193.6,3193.2,0.00470152]
[1765448751905,2.98170798,3193.3,3193.2,0.00470152]
[1765448752112,2.98170798,3193.3,3193.2,0.16127152]
[1765448760015,2.98170798,3193.3,3193.2,0.47407152]
[1765448760609,2.98170798,3193.3,3193.2,0.16127152]
[1765448761317,2.98170798,3193.3,3193.2,0.39887152]
[1765448761717,0.8994,3193.3,3193.2,0.63647152]
[1765448761921,1.8917,3193.3,3193.2,0.39887152]
[1765448764421,1.8917,3193.3,3193.2,0.16127152]
[1765448771225,1.8917,3193.3,3193.2,0.33427152]
[1765448771423,1.8917,3193.3,3193.2,0.16127152]
[1765448778036,1.8917,3193.3,3193.2,0.23137152]
[1765448778238,1.8917,3193.3,3193.2,0.29117152]
[1765448778733,2.5973,3193.5,3193.4,0.25556]
[1765448779235,2.5973,3193.5,3193.4,0.20606]
[1765448780135,3.71830798,3193.5,3193.4,0.15656]
[1765448782333,2.5973,3193.5,3193.4,0.20466]
[1765448782834,2.5973,3193.5,3193.4,0.19586]
[1765448785243,0.5651,3193.5,3193.4,0.20466]
[1765448787941,0.5651,3193.5,3193.4,3.41246]